Cogmind - Beta 14 @@@ ROGUE MODE // 2024.09.13 @ 15:59:13 Player: Null_error Result: Destroyed by G-34 Mercenary with Small Laser Performance ------------- Evolutions (1) 500 Regions Visited (2) 400 Robots Destroyed (63) 315 Value Destroyed (1247) 1247 Prototype IDs (4) 80 Alien Tech Used (0) 0 Bonus (0) 0 TOTAL SCORE: 2542 Bonus ------- None Cogmind --------- Core Integrity 0/400 Matter 199/300 Energy 265/265 System Corruption 12% Temperature Cool (6) Movement Flying (600) Ox7 Location -9/Materials Parts ------- > --- POWER (1) -------- Improved Ion Engine > --- PROPULSION (3) --- Flight Unit > --- UTILITY (3) ------ Large Storage Unit > --- WEAPON (2) ------- Flail > --- INVENTORY (15) --- Ion Engine Light Ion Engine Huge Storage Unit Large Matter Pod (150) Visual Processing Unit Sensor Array Hacking Suite Field Recycling Unit (0) Field Recycling Unit (0) Improved Medium Laser Improved Medium Laser Grenade Launcher Flail Peak State ------------ > --- POWER ------------ Heavy Ion Engine > --- PROPULSION ------- Wheel Hover Unit Hover Unit > --- UTILITY ---------- Large Storage Unit Structural Scanner Signal Interpreter > --- WEAPON ----------- Improved Medium Laser Improved Medium Laser > --- INVENTORY -------- Ion Engine Light Ion Engine Hover Unit Huge Storage Unit Large Matter Pod Visual Processing Unit Sensor Array Hacking Suite Field Recycling Unit Field Recycling Unit Light Assault Rifle Grenade Launcher Flail Flail Flail [Rating: 17] Favorites ----------- Power Light Ion Engine Engine Light Ion Engine Power Core Light Nuclear Core Propulsion Light Treads Treads Light Treads Leg Aluminum Leg Wheel Wheel Hover Unit Hover Unit Flight Unit Flight Unit Utility Small Storage Unit Device Structural Scanner Storage Small Storage Unit Processor Targeting Computer Weapon Improved Light Cannon Energy Gun Small Laser Ballistic Gun Assault Rifle Ballistic Cannon Improved Light Cannon Launcher Grenade Launcher Impact Weapon Flail Build | -11 -10 -9 ------- Run | Yrd Mat Mat Slots Evolved 2 | . . 2 Power . | . . . Propulsion 1 | . . 1 Utility 1 | . . 1 Weapon . | . . . Parts Attached 60 | 10 26 24 Power 11 | 1 5 5 Engine 10 | 1 4 5 Core 1 | . 1 . Reactor . | . . . Propulsion 15 | 4 4 7 Treads 4 | 2 2 . Leg 1 | . . 1 Wheel 5 | 2 2 1 Hover 3 | . . 3 Flight 2 | . . 2 Utility 15 | 3 8 4 Device 6 | 2 1 3 Storage 7 | 1 6 . Processor 2 | . 1 1 Hackware . | . . . Protection . | . . . Artifact . | . . . Weapon 19 | 2 9 8 Energy Gun 10 | 1 5 4 Energy Cannon . | . . . Ballistic Gun 3 | 1 . 2 Ballistic Cannon 3 | . 3 . Launcher 1 | . 1 . Special Weapon . | . . . Impact Weapon 2 | . . 2 Slashing Weapon . | . . . Piercing Weapon . | . . . Special Melee Weapon . | . . . Unidentified Prototypes 2 | . . 2 Corrupted Parts 1 | . . 1 System Corruption 12 | . . 12 Parts Lost 23 | . 7 16 Power 6 | . 3 3 Propulsion 9 | . 1 8 Utility 2 | . . 2 Weapon 6 | . 3 3 Highest Loss Streak 6 | . 3 6 To Critical Strikes 1 | . . 1 Average Slot Usage (%) 93 | . 95 87 Engine 10 | . 10 9 Treads 18 | . 23 5 Wheel 5 | . 4 8 Hover 1 | . . 6 Flight 1 | . . 5 Device 9 | . 10 9 Storage 13 | . 14 11 Processor 5 | . 3 8 Energy Gun 11 | . 12 9 Ballistic Gun 3 | . 2 3 Ballistic Cannon 10 | . 11 6 Peak Build Rating 17 | 7 12 17 Average Rating 9 | 6 8 11 On Entrance 5 | . 7 10 Naked Turns . | . . . Heaviest Build 35 | 15 29 35 Greatest Support 40 | 40 40 12 Greatest Overweight (x) 9 | . 2 9 Average Overweight (x) . | . . 3 Largest Inventory Capacity 25 | 8 25 15 Average Capacity 10 | 6 8 15 Most Carried 15 | 3 13 15 Average Carried 8 | 2 7 14 Final Capacity 15 | 8 15 15 Final Carried 13 | 3 13 13 Class Distribution -------------------- 70% | Mutant 29% | Scavenger-Mutant Dominant Class ---------------- Mutant | -10/Materials Scavenger-Mutant | -9/Materials Resources | -11 -10 -9 ----------- Run | Yrd Mat Mat Matter Collected 1365 | 364 668 333 Remotely 55 | 55 . . Salvage Created 1714 | 266 772 676 Parts 106 | 23 41 42 Haulers Intercepted 2 | . 2 . Recyclers Shooed 3 | . 1 2 Parts Field Recycled . | . . . Retrieved Matter . | . . . Parts Self-Destructed . | . . . Prevented . | . . . Kills | -11 -10 -9 ------- Run | Yrd Mat Mat Combat Hostiles Destroyed 33 | . 19 14 Guns 16 | . 7 9 Cannons 14 | . 10 4 AOE 2 | . 2 . Classes Destroyed 11 | 3 6 2 Worker 7 | 2 2 3 Builder 3 | . 2 1 Tunneler 7 | 7 . . Hauler 2 | . 2 . Recycler 4 | 1 1 2 Operator 2 | . 1 1 Watcher 5 | . 3 2 Swarmer 9 | . 3 6 Grunt 21 | . 16 5 Duelist 1 | . . 1 Sentry 2 | . . 2 Best Kill Streak 6 | 4 6 5 Combat Bots Only 3 | . 3 3 Max Kills in Single Turn 4 | 1 4 2 Gunslinging . | . . . Exploded 2 | . 2 . Melee . | . . . Uniques/NPCs Destroyed . | . . . Combat | -11 -10 -9 -------- Run | Yrd Mat Mat Hostile Shots Fired 265 | . 114 151 Missed 70 | . 29 41 Damage Taken 2642 | . 1135 1507 Core 540 | . 133 407 Absorbed by Shields . | . . . Core Remaining (%) 73 | 100 46 . Volleys Fired 157 | 23 85 49 Largest 2 | 2 2 2 Hottest 112 | 70 105 112 Shots Fired 299 | 45 157 97 Gun 223 | 45 107 71 Cannon 74 | . 48 26 Launcher 2 | . 2 . Special . | . . . Kinetic 170 | 23 78 69 Thermal 125 | 22 75 28 Explosive 2 | . 2 . Electromagnetic 2 | . 2 . Robot Hit Streak 9 | 8 7 9 Robot Miss Streak 4 | 4 4 4 Penetration Max . | . . . Secondary Targets 2 | . 1 1 Max Gunslinging Chain 1 | . 1 1 Shots Hit Robots 206 | 25 105 76 Core Hits 85 | 11 43 31 Critical Kills . | . . . Critical Parts Destroyed 1 | . . 1 Critical Strikes 13 | 1 11 1 Burn 6 | 1 5 . Blast 6 | . 6 . Smash 1 | . . 1 Melee Attacks 13 | . . 13 Impact 13 | . . 13 Slashing . | . . . Piercing . | . . . Sneak Attacks 2 | . . 2 Combat Hostiles . | . . . Follow-up Attacks . | . . . Damage Inflicted 3997 | 334 2192 1471 Guns 2012 | 334 895 783 Cannons 1054 | . 748 306 Explosions 526 | . 526 . Melee 381 | . . 381 Ramming 24 | . 23 1 Kinetic 2009 | 172 981 856 Thermal 1422 | 162 1027 233 Explosive 135 | . 135 . Electromagnetic 26 | . 26 . Impact 381 | . . 381 Slashing . | . . . Piercing . | . . . Highest Corruption 12 | . 1 12 Average Corruption 5 | . 1 12 Corruption Purged . | . . . Corruption Blocked . | . . . Overload Shots . | . . . Overflow Damage 316 | . 256 60 Projectiles . | . . . Explosions 256 | . 256 . Melee 60 | . . 60 Knockbacks 16 | . 10 6 Impact 4 | . . 4 Kinetic 11 | . 9 2 Secondary 1 | . 1 . Self-Inflicted Damage 123 | . 123 . Shots 3 | . 3 . Rammed 6 | . 5 1 Targets Rammed 6 | . 5 1 Kicked . | . . . Crushed . | . . . Highest Temperature 200 | 63 200 63 Average Temperature 41 | 21 54 16 Received Heat Transfer 1029 | . 555 474 Siege Activations . | . . . Robots Corrupted 2 | . . 2 Combat Hostiles 1 | . . 1 Parts Fried 1 | . . 1 Impact Corruptions 4 | . . 4 Robots Melted . | . . . Combat Hostiles . | . . . Parts Melted 4 | . 4 . Heat Transferred 3334 | 555 2280 499 Parts Sabotaged . | . . . Parts Stolen . | . . . Parts Stripped . | . . . Power Chain Reactions . | . . . Alert | -11 -10 -9 ------- Run | Yrd Mat Mat Peak Influence 267 | 50 267 191 Initial 48 | . 32 48 Average 124 | 18 143 105 Maximum Alert Level 1 | . 1 . Low Security (%) 90 | 100 85 100 Level 1 9 | . 14 . Level 2 . | . . . Level 3 . | . . . Level 4 . | . . . Level 5 . | . . . High Security . | . . . Max Security . | . . . Squads Dispatched 4 | . 3 1 Investigation 2 | . 2 . Extermination . | . . . Reinforcement 2 | . 1 1 Assault . | . . . Garrison . | . . . Intercept . | . . . Searches Triggered . | . . . Construction Impeded . | . . . Haulers Reinforced . | . . . Active Scanning Responses . | . . . Cargo Convoy Interrupts . | . . . Stealth | -11 -10 -9 --------- Run | Yrd Mat Mat Distress Signals 4 | . 1 3 Communications Jammed . | . . . Distress Signals . | . . . Times Spotted 47 | . 28 19 Peak Tracking Total 4 | . 3 4 Tactical Retreats 2 | . 2 . Traps | -11 -10 -9 ------- Run | Yrd Mat Mat Traps Triggered 2 | . 2 . Indirectly . | . . . Trap Hack Attempts . | . . . Triggered . | . . . Disarmed . | . . . Reprogrammed . | . . . Reused . | . . . Traps Extracted . | . . . Installed . | . . . Triggered . | . . . Machines | -11 -10 -9 ---------- Run | Yrd Mat Mat Machines Disabled 3 | . 3 . Max in Single Turn 3 | . 3 . Machines Repaired . | . . . Machines Dismantled . | . . . Machines Sabotaged . | . . . Overloaded Fab Kills . | . . . Hacking | -11 -10 -9 --------- Run | Yrd Mat Mat Machines Accessed 8 | . 7 1 Terminals 8 | . 7 1 Fabricators . | . . . Repair Stations . | . . . Recycling Units . | . . . Scanalyzers . | . . . Garrison Access . | . . . Total Hacks 21 | . 18 3 Successful 10 | . 8 2 Failed 11 | . 10 1 Catastrophic 2 | . 2 . Database Lockouts . | . . . Manual 15 | . 14 1 Terminals 21 | . 18 3 Fabricators . | . . . Repair Stations . | . . . Recycling Units . | . . . Scanalyzers . | . . . Garrison Access . | . . . Terminal Hacks 8 | . 7 1 Record 2 | . 2 . Robot Analysis 4 | . 4 . Prototype ID Bank 1 | . . 1 Investigation Status 1 | . 1 . Fabricator Hacks . | . . . Repair Station Hacks . | . . . Recycling Unit Hacks . | . . . Scanalyzer . | . . . Garrison Access Hacks . | . . . Unauthorized Hacks 2 | . 1 1 Terminals 2 | . 1 1 Assimilate 1 | . 1 . Skim 1 | . . 1 Fabricators . | . . . Repair Stations . | . . . Recycling Units . | . . . Scanalyzers . | . . . Garrison Access . | . . . Data Cores Recovered . | . . . Used . | . . . Hacking Detections 7 | . 6 1 Full Trace Events 2 | . 2 . Feedback Events . | . . . Feedback Blocked . | . . . Robot Schematics Acquired . | . . . Robots Built . | . . . Authchips . | . . . Time . | . . . Total Robot Build Rating . | . . . Part Schematics Acquired . | . . . Parts Built . | . . . Authchips . | . . . Time . | . . . Total Part Build Rating . | . . . Parts Repaired . | . . . Time . | . . . Parts Recycled . | . . . Recycled Matter . | . . . Retrieved Matter . | . . . Retrieved Components . | . . . Parts Scanalyzed . | . . . Part Schematics Acquired . | . . . Parts Damaged . | . . . Bothacking | -11 -10 -9 ------------ Run | Yrd Mat Mat Used RIF Installer . | . . . Robots Hacked . | . . . Non-combat . | . . . Combat . | . . . Robot Hacks Applied . | . . . Relay Couplers Released . | . . . Fabnet Peak Effective % . | . . . Robots Rewired . | . . . Allies Hacked . | . . . Hacks Repelled . | . . . Allies | -11 -10 -9 -------- Run | Yrd Mat Mat Total Allies 1 | . 1 . Largest Group 1 | . 1 . Highest-Rated Group 10 | . 10 . Highest-Rated Ally 10 | . 10 . Total Orders 1 | . 1 . FOLLOW 1 | . 1 . Ally Attacks . | . . . Total Damage . | . . . Kills . | . . . Allies Corrupted . | . . . Allies Melted . | . . . Intel | -11 -10 -9 ------- Run | Yrd Mat Mat Robot Analysis Total 4 | . 4 . Derelict Logs Recovered . | . . . Drone Launches . | . . . Drone Recoveries . | . . . Exploration | -11 -10 -9 ------------- Run | Yrd Mat Mat Turns Passed 3534 | 257 2412 865 Spaces Moved 1924 | 118 1581 225 Core 6 | 1 . 5 Treads 961 | 89 872 . Legs 10 | . . 10 Wheels 862 | 28 709 125 Hover 26 | . . 26 Flight 59 | . . 59 Fastest Speed 50 | 50 80 110 Average Speed 148 | 144 130 276 Slowest Speed 625 | 160 240 625 Overloaded Moves . | . . . Propulsion Burnouts . | . . . Robots Hopped . | . . . Cave-ins Triggered . | . . . Exploration Rate (%) 40 | 6 98 17 Regions Visited 2 Branch Regions . Pre-discovered Areas . | . . . Known Exits Taken . | . . . Unknown Exits Taken 2 | 1 1 . Scrap Searched . | . . . Spaces Dug 1 | . . 1 Terrain Destroyed 36 | . 33 3 Melee 1 | . . 1 Projectile 2 | . . 2 AOE 33 | . 33 . Terrain Rammed . | . . . Walls Destroyed . | . . . Machines Disabled . | . . . Actions | -11 -10 -9 --------- Run | Yrd Mat Mat Total 2253 | 155 1762 336 Wait 61 | . 42 19 Move 1922 | 117 1580 225 Hop . | . . . Pick Up 21 | 4 13 4 Fast Attach 22 | 7 6 9 Attach 6 | . 2 4 Detach . | . . . Swap 32 | 3 18 11 Drop 13 | 1 11 1 Fire 157 | 23 85 49 Melee 13 | . . 13 Ram 2 | . 1 1 Kick . | . . . Crush 4 | . 4 . Escape Stasis . | . . . Rewire . | . . . Trap . | . . . Miscellaneous . | . . . Route ------- -11/Scrapyard -10/Materials (discovered 4 exits: *Mat x3 / [*Min]) -9/Materials History --------- Turn | Location | Event 23 | -11/Scrapyard | Discovered new exit (range 15) 258 | -11/Scrapyard | Entered Materials 301 | -10/Materials | Build established: Mutant 507 | -10/Materials | Discovered new exit (range 13) 834 | -10/Materials | Discovered new exit (range 6) 864 | -10/Materials | Lost 3 parts (1p2w) 937 | -10/Materials | Discovered new exit (range 12) 1086 | -10/Materials | Discovered new exit (range 3) 1853 | -10/Materials | Build established: Scavenger-Mutant 2161 | -10/Materials | Build established: Mutant 2549 | -10/Materials | Core integrity fell below 50% 2670 | -10/Materials | Entered another Materials area 2670 | -9/Materials | Evolved 2 slots: Propulsion x1, Utility x1 2925 | -9/Materials | Build established: Scavenger-Mutant 3165 | -9/Materials | Lost 4 parts (1p3n) 3401 | -9/Materials | Lost 3 parts (2n1u) 3457 | -9/Materials | Core integrity fell below 50% 3500 | -9/Materials | Lost 6 parts (1p3n2w) 3501 | -9/Materials | Core integrity fell below 20% 3518 | -9/Materials | System corruption reached 10% 3535 | -9/Materials | Destroyed by G-34 Mercenary with Small Laser Last Messages --------------- effect. 03469_ Aluminum Leg destroyed. 03478_ L-31 Rogue knocked back. 03482_ K-01 Serf collects debris. 03485_ L-31 Rogue suffers critical hit (Smash). 03485_ Destroyed Katana. 03485_ L-31 Rogue system corrupted by crushing effect. 03485_ L-31 Rogue knocked back. 03486_ L-31 Rogue system terminally corrupted. 03486_ K-01 Serf collects debris. 03490_ K-01 Serf cleans the Nuclear Reactor. 03492_ Acquired 36 matter. 03502_ K-01 Serf collects debris. 03506_ Acquired Flight Unit. 03506_ K-01 Serf collects debris. 03507_ Sneak attack on A-02 Transporter. 03517_ Integrated Corrupted Imp. Ion Engine (+12). 03521_ G-34 Mercenary knocked back. Map ----- +----------------------------------------------------+ | ????## ### ##????????????## ##??? | | ????## ]] #########????????????## [ ##??? | | ????## ]] #############????????## %*[[[= ##??? | | ????## ]] ##???########????????## !*[!%] ##??? | | ????## ##???## ##????###### %=%%**##### | | ????############???## ! ################+####### | | ????############???## ######## ###### | | ???????????????????## # * # % ###### | | ???????????????????## # + ####### | | ???????????????????## "# """ """ """ # ##????? | | ???????????????????## T# """ """ """ # ##????? | | ???????????????????## "# """ """ """ # ????? | | ???????????????????## # # ??? | | ??????????????##########+############### ?? | | ??????????????########## ####################[ | | ??????????????## # #####????????######## # | | ??????????????## [ # #####??????????????## # | | ??????????????## !/= + ##????????????????? # | | ??????????????## !== # ### ???????????????? # | | ??????????????## == =# ### ???????????????? # | | ??????????????########## # ???????????????? | | ??????????????########## + ?????????????????? | | ??????????????????######+## # ?????????????????? | | ??????????????????## # # ?????????????????? | | ??????????????????## """ # # ?????????????????? | | ??????????????????## """@# # ?????????????????? | | ??????????????????## """%g # ?????????????????? | | ??????????????????## # ##?????????????????? | | ??????????????????## # ##?????????????????? | | ??????????????????######+## % ##?????????????????? | | ??????????????????#### *=== ##?????????????????? | | ????????????????????## %* ##?????????????????? | | ????????????????????## =%= ##?????????????????? | | ????????????????????## !!= ##?????????????????? | | ????????????????????## ##?????????????????? | | ???????????????????? ?????????????????? | | ??????????????????? ????????????????? | | ????????????????? ???????????????? | | ?????????????????######+#####+## ????????????? | | ?????????????????##### ######????????????? | | ???????????????????????????????# ????????????? | | ?????????????????????????????????????????????????? | | ?????????????????????????????????????????????????? | | ?????????????????????????????????????????????????? | | ?????????????????????????????????????????????????? | | ?????????????????????????????????????????????????? | | ?????????????????????????????????????????????????? | | ?????????????????????????????????????????????????? | | ?????????????????????????????????????????????????? | | ?????????????????????????????????????????????????? | +----------------------------------------------------+ Best States ------------- Heat Dissipation 28 Energy Generation 14 Energy Capacity 280 Matter Stores 300 Matter Capacity 300 Sight Range 16 Terrain Scan Density 10 Evasion (%) 44 Targeting Accuracy 5 Recoil Reduction 2 Item Schematics ----------------- None Robot Schematics ------------------ None Fabricated ------------ Nothing Alien Tech Used ----------------- None Achievements -------------- None Challenges ------------ None Game ------ Seed LargeLobotomySabre Manual? 0 Play Time 00:24:13 Cumulative 55.4 hours Start 2024.09.13 @ 15:33:03 End 2024.09.13 @ 15:59:13 Sessions 1 Manual Loads 0 Difficulty Rogue Special Mode None Game No. 57 Rogue 57 Adventurer 0 Explorer 0 Win Type - Total 1 Types 1/0/0/0/0/0/0/0/0 Lore% 20 Gallery% 45 Achievement% 30 Wizard Run 0 Options --------- Layout 2 ASCII 0 Keyboard 1 Movement Numpad Keybinds 0 Fullscreen 2 Font 24/Smallcaps Map View 50x44 Zoom Use 0% Tactical HUD 1 Map Filters NONE Filters LOW_CONTRAST(5,20,15) Steam 1 RUN: 27ebf76f-61a8-411a-9768-abae16c25c05